Cogmind - Beta 15 @@@ ROGUE MODE // 2025.06.23 @ 21:19:57 Player: MAC-Bot 2145 Result: Destroyed by D-53 Grenadier with Mini Grenade Launcher Performance ------------- Evolutions (1) 500 Regions Visited (3) 600 Robots Destroyed (28) 140 Value Destroyed (514) 514 Prototype IDs (1) 20 Alien Tech Used (0) 0 Bonus (48) 48 TOTAL SCORE: 1822 Bonus ------- Pacifist 200 Friendly Fire -152 Cogmind --------- Core Integrity 0/400 Matter 22/300 Energy 100/100 System Corruption 5% Temperature Cool (0) Movement Rolling (115) Ox1 Location -9/Mines Parts ------- > --- POWER (1) -------- (None) > --- PROPULSION (3) --- Compact Wheel > --- UTILITY (3) ------ Large Storage Unit > --- WEAPON (2) ------- Mini Grenade Launcher > --- INVENTORY (15) --- Light Ion Engine Reinforced Ion Engine Compact Wheel Light Armor Plating Field Recycling Unit (0) Heavy Particle Gun Mini Grenade Launcher Mining Laser Peak State ------------ > --- POWER ------------ Ion Engine > --- PROPULSION ------- Compact Wheel Compact Wheel Compact Wheel > --- UTILITY ---------- Large Storage Unit Heavy Armor Plating > --- WEAPON ----------- Heavy Particle Gun Mini Grenade Launcher > --- INVENTORY -------- Light Ion Engine Reinforced Ion Engine Compact Wheel Light Armor Plating Field Recycling Unit Heavy Particle Gun Mini Grenade Launcher Mini Grenade Launcher Mining Laser [Rating: 18] Favorites ----------- Power Ion Engine Engine Ion Engine Power Core Light Nuclear Core Propulsion Compact Wheel Wheel Compact Wheel Utility Backup Plating I Device ECM Suite Storage Large Storage Unit Protection Backup Plating I Weapon Mini Grenade Launcher Energy Gun Medium Laser Ballistic Gun Light Assault Rifle Launcher Mini Grenade Launcher Build | -11 -10 -9 -9 ------- Run | Yrd Mat Mat Min Slots Evolved 2 | . . 2 . Power . | . . . . Propulsion 1 | . . 1 . Utility 1 | . . 1 . Weapon . | . . . . Parts Attached 29 | 6 2 17 4 Power 5 | 1 1 3 . Engine 4 | 1 1 2 . Core 1 | . . 1 . Reactor . | . . . . Propulsion 8 | 2 . 4 2 Treads . | . . . . Leg . | . . . . Wheel 8 | 2 . 4 2 Hover . | . . . . Flight . | . . . . Utility 10 | 1 . 8 1 Device 2 | . . 2 . Storage 4 | 1 . 3 . Processor . | . . . . Hackware . | . . . . Protection 4 | . . 3 1 Artifact . | . . . . Weapon 6 | 2 1 2 1 Energy Gun 2 | 1 . 1 . Energy Cannon . | . . . . Ballistic Gun 1 | 1 . . . Ballistic Cannon . | . . . . Launcher 3 | . 1 1 1 Special Weapon . | . . . . Impact Weapon . | . . . . Slashing Weapon . | . . . . Piercing Weapon . | . . . . Special Melee Weapon . | . . . . Unidentified Prototypes 1 | . . 1 . Parts Lost 20 | . . 8 12 Power 5 | . . 3 2 Propulsion 6 | . . 1 5 Utility 6 | . . 3 3 Weapon 3 | . . 1 2 Highest Loss Streak 6 | . . 5 6 To Critical Strikes . | . . . . Average Backups 9 | 4 7 9 12 Power 1 | . 1 1 2 Propulsion 2 | 2 3 2 3 Utility 1 | . . 1 2 Weapon 3 | . 2 3 3 Tool/Special . | . . . . Unused Backups 14 | . 2 4 8 Power 2 | . . . 2 Propulsion 5 | . 2 2 1 Utility 3 | . . 1 2 Weapon 4 | . . 1 3 Tool/Special . | . . . . Average Slot Usage (%) 89 | . 85 89 91 Engine 9 | . 14 9 10 Core 1 | . . 1 . Wheel 29 | . 28 28 30 Device 3 | . . 5 . Storage 11 | . 14 11 11 Protection 11 | . . 11 17 Energy Gun 8 | . 14 7 10 Ballistic Gun 3 | . 10 3 . Launcher 10 | . 3 11 11 Peak Build Rating 18 | 6 6 17 18 Average Rating 11 | 3 6 11 16 On Entrance 7 | . 6 6 17 Naked Turns . | . . . . Heaviest Build 44 | 13 15 37 44 Greatest Support 48 | 20 20 44 48 Greatest Overweight (x) 1 | . . . 1 Average Overweight (x) . | . . . . Largest Inventory Capacity 15 | 8 8 15 15 Average Capacity 11 | 6 8 11 15 Most Carried 15 | 7 8 15 15 Average Carried 9 | 4 7 9 12 Final Capacity 15 | 8 8 15 15 Final Carried 15 | 6 8 15 8 Class Distribution -------------------- 100% | Mutant Dominant Class ---------------- Mutant | -10/Materials Mutant | -9/Materials Mutant | -9/Mines Resources | -11 -10 -9 -9 ----------- Run | Yrd Mat Mat Min Matter Collected 544 | 260 . 284 . Remotely . | . . . . Salvage Created 447 | . . 347 100 Parts 34 | . . 28 6 Haulers Intercepted . | . . . . Recyclers Shooed . | . . . . Parts Field Recycled . | . . . . Retrieved Matter . | . . . . Parts Self-Destructed . | . . . . Prevented . | . . . . Kills | -11 -10 -9 -9 ------- Run | Yrd Mat Mat Min Combat Hostiles Destroyed 34 | . . 20 14 Guns 1 | . . 1 . AOE 33 | . . 19 14 Classes Destroyed 7 | . . 5 2 Recycler 3 | . . 2 1 Watcher 1 | . . 1 . Swarmer 17 | . . 14 3 Grunt 3 | . . 3 . Sentry 3 | . . 3 . Assembled 11 | . . . 11 Guerrilla 1 | . . . 1 Best Kill Streak 15 | . . 7 15 Combat Bots Only 14 | . . 5 14 Max Kills in Single Turn 4 | . . 3 4 Gunslinging . | . . . . Exploded 4 | . . 3 4 Melee . | . . . . Uniques/NPCs Destroyed . | . . . . Combat | -11 -10 -9 -9 -------- Run | Yrd Mat Mat Min Hostile Shots Fired 147 | . 5 81 61 Missed 48 | . 4 27 17 Hits 99 | . 1 54 44 Melee 1 | . . . 1 Projectile 98 | . 1 54 43 AOE 9 | . . . 9 Critical Strikes 2 | . . 2 . Part Disruptions 1 | . . . 1 Damage Taken 1942 | . 16 867 1059 Core 406 | . . 175 231 Absorbed by Shields . | . . . . Redirected to Shielding 50 | . . 50 . Core Remaining (%) 100 | 100 100 . . Volleys Fired 38 | . . 26 12 Largest 2 | . . 2 2 Hottest 85 | . . 80 85 Shots Fired 71 | . . 47 24 Gun 34 | . . 22 12 Cannon . | . . . . Launcher 37 | . . 25 12 Special . | . . . . Kinetic 1 | . . 1 . Thermal 33 | . . 21 12 Explosive 37 | . . 25 12 Electromagnetic . | . . . . Robot Hit Streak 4 | . . 4 2 Robot Miss Streak 3 | . . 2 3 Penetration Max . | . . . . Secondary Targets . | . . . . Shots Hit Robots 29 | . . 19 10 Core Hits 56 | . . 27 29 Critical Kills . | . . . . Critical Parts Destroyed . | . . . . Critical Strikes 2 | . . 2 . Burn 2 | . . 2 . Melee Attacks . | . . . . Impact . | . . . . Slashing . | . . . . Piercing . | . . . . Sneak Attacks . | . . . . Combat Hostiles . | . . . . Follow-up Attacks . | . . . . Damage Inflicted 2766 | . . 1531 1235 Guns 125 | . . 87 38 Cannons . | . . . . Explosions 2640 | . . 1444 1196 Melee . | . . . . Ramming 1 | . . . 1 Kinetic . | . . . . Thermal 307 | . . 269 38 Explosive 2458 | . . 1262 1196 Electromagnetic . | . . . . Impact . | . . . . Slashing . | . . . . Piercing . | . . . . Highest Corruption 5 | . . 2 5 Average Corruption 2 | . . 2 3 Corruption Purged . | . . . . Corruption Blocked . | . . . . Effects 6 | . . 2 4 Message Errors 2 | . . 1 1 Matter Fused 2 | . . . 2 Heat Flow Errors 1 | . . . 1 Energy Discharges 1 | . . 1 . Overload Shots . | . . . . Overflow Damage 58 | . . 32 26 Projectiles . | . . . . Explosions 58 | . . 32 26 Melee . | . . . . Knockbacks . | . . . . Impact . | . . . . Kinetic . | . . . . Secondary . | . . . . Self-Inflicted Damage 171 | . . 57 114 Shots 7 | . . 3 4 Rammed 1 | . . . 1 Targets Rammed 1 | . . . 1 Kicked . | . . . . Crushed . | . . . . Highest Temperature 185 | . . 69 185 Average Temperature 31 | . . 14 47 Received Heat Transfer 193 | . 9 144 40 Siege Activations . | . . . . Martial Activations . | . . . . Shielding Activations . | . . . . Robots Disrupted . | . . . . Combat Hostiles . | . . . . Robots Corrupted . | . . . . Combat Hostiles . | . . . . Parts Fried . | . . . . Impact Corruptions . | . . . . Robots Melted . | . . . . Combat Hostiles . | . . . . Parts Melted . | . . . . Heat Transferred 581 | . . 507 74 Parts Sabotaged . | . . . . Parts Stolen . | . . . . Parts Stripped . | . . . . Power Chain Reactions . | . . . . Alert | -11 -10 -9 -9 ------- Run | Yrd Mat Mat Min Maximum Alert Level 2 | . . 2 . Low Security (%) 65 | 100 100 51 100 Level 1 28 | . . 40 . Level 2 5 | . . 8 . Level 3 . | . . . . Level 4 . | . . . . Level 5 . | . . . . High Security . | . . . . Max Security . | . . . . Peak Influence 453 | . . 453 174 Initial 166 | . . . 166 Average 155 | . . 187 151 Influence Increases 911 | . . 781 130 Destroy 0b10 Robot/C 460 | . . 400 60 Destroy 0b10 Robot/NC 20 | . . 15 5 Destroy Leader 92 | . . 82 10 Disable Machine 90 | . . 90 . Destroy Structure 219 | . . 164 55 Partial Spotted 15 | . . 15 . Lose Combat Pursuer 15 | . . 15 . Influence Decreases 815 | . . 352 463 Entered New Map 263 | . . . 263 Time Decay 352 | . . 272 80 Lost Part 200 | . . 80 120 Squads Dispatched 1 | . . 1 . Investigation . | . . . . Extermination . | . . . . Reinforcement 1 | . . 1 . Assault . | . . . . Garrison . | . . . . Intercept . | . . . . Searches Triggered . | . . . . Construction Impeded . | . . . . Haulers Reinforced . | . . . . Active Scanning Responses . | . . . . Cargo Convoy Interrupts . | . . . . Stealth | -11 -10 -9 -9 --------- Run | Yrd Mat Mat Min Distress Signals 1 | . . 1 . Communications Jammed . | . . . . Distress Signals . | . . . . Times Spotted 57 | . 2 29 26 Peak Tracking Total 12 | . 2 5 12 Tactical Retreats 5 | . . 4 1 Traps | -11 -10 -9 -9 ------- Run | Yrd Mat Mat Min Traps Triggered . | . . . . Indirectly . | . . . . Trap Hack Attempts . | . . . . Triggered . | . . . . Disarmed . | . . . . Reprogrammed . | . . . . Reused . | . . . . Traps Extracted . | . . . . Installed . | . . . . Triggered . | . . . . Machines | -11 -10 -9 -9 ---------- Run | Yrd Mat Mat Min Machines Disabled 6 | . . 6 . Max in Single Turn 4 | . . 4 . Machines Repaired . | . . . . Machines Dismantled . | . . . . Machines Sabotaged . | . . . . Overloaded Fab Kills . | . . . . Hacking | -11 -10 -9 -9 --------- Run | Yrd Mat Mat Min Machines Accessed 4 | . 2 2 . Terminals 3 | . 2 1 . Fabricators . | . . . . Repair Stations . | . . . . Recycling Units . | . . . . Scanalyzers 1 | . . 1 . Garrison Access . | . . . . Total Hacks 9 | . 5 4 . Successful 7 | . 3 4 . Failed 2 | . 2 . . Catastrophic . | . . . . Database Lockouts . | . . . . Manual . | . . . . Terminals 6 | . 5 1 . Fabricators . | . . . . Repair Stations . | . . . . Recycling Units . | . . . . Scanalyzers 3 | . . 3 . Garrison Access . | . . . . Terminal Hacks 4 | . 3 1 . Record 4 | . 3 1 . Fabricator Hacks . | . . . . Repair Station Hacks . | . . . . Recycling Unit Hacks . | . . . . Scanalyzer 3 | . . 3 . Insert Component 2 | . . 2 . Analyze 1 | . . 1 . Garrison Access Hacks . | . . . . Unauthorized Hacks . | . . . . Terminals . | . . . . Fabricators . | . . . . Repair Stations . | . . . . Recycling Units . | . . . . Scanalyzers . | . . . . Garrison Access . | . . . . Data Cores Recovered . | . . . . Used . | . . . . Hacking Detections 1 | . . 1 . Full Trace Events . | . . . . Feedback Events . | . . . . Feedback Blocked . | . . . . Robot Schematics Acquired . | . . . . Robots Built . | . . . . Authchips . | . . . . Time . | . . . . Total Robot Build Rating . | . . . . Part Schematics Acquired 1 | . . 1 . Parts Built . | . . . . Authchips . | . . . . Time . | . . . . Total Part Build Rating . | . . . . Parts Repaired . | . . . . Time . | . . . . Parts Recycled . | . . . . Recycled Matter . | . . . . Retrieved Matter . | . . . . Retrieved Components . | . . . . Parts Scanalyzed 1 | . . 1 . Part Schematics Acquired 1 | . . 1 . Parts Damaged . | . . . . Bothacking | -11 -10 -9 -9 ------------ Run | Yrd Mat Mat Min Used RIF Installer . | . . . . Robots Hacked . | . . . . Non-combat . | . . . . Combat . | . . . . Robot Hacks Applied . | . . . . Relay Couplers Released . | . . . . Fabnet Peak Effective % . | . . . . Robots Rewired . | . . . . Allies Hacked . | . . . . Hacks Repelled . | . . . . Allies | -11 -10 -9 -9 -------- Run | Yrd Mat Mat Min Total Allies . | . . . . Largest Group . | . . . . Highest-Rated Group . | . . . . Highest-Rated Ally . | . . . . Total Orders . | . . . . Ally Attacks . | . . . . Total Damage . | . . . . Kills . | . . . . Allies Corrupted . | . . . . Allies Melted . | . . . . Intel | -11 -10 -9 -9 ------- Run | Yrd Mat Mat Min Active Infowar (turns) 314 | . . 314 . ECM 314 | . . 314 . Robot Analysis Total . | . . . . Derelict Logs Recovered 1 | . . . 1 Drone Launches . | . . . . Drone Recoveries . | . . . . Exploration | -11 -10 -9 -9 ------------- Run | Yrd Mat Mat Min Turns Passed 1092 | 54 101 770 167 Spaces Moved 971 | 48 116 684 123 Core 4 | 4 . . . Treads . | . . . . Legs . | . . . . Wheels 967 | 44 116 684 123 Hover . | . . . . Flight . | . . . . Fastest Speed 50 | 50 80 80 96 Average Speed 88 | 77 80 88 100 Slowest Speed 115 | 80 80 96 115 Overloaded Moves . | . . . . Propulsion Burnouts . | . . . . Robots Hopped . | . . . . Potential Cave-ins . | . . . . Cave-ins Triggered 2 | . . 1 1 Exploration Rate (%) 24 | 4 22 42 29 Regions Visited 3 Branch Regions 1 Pre-discovered Areas . | . . . . Known Exits Taken . | . . . . Unknown Exits Taken 3 | 1 1 1 . Scrap Searched . | . . . . Spaces Dug . | . . . . Terrain Destroyed 327 | . . 211 116 Melee . | . . . . Projectile 3 | . . . 3 AOE 324 | . . 211 113 Terrain Rammed . | . . . . Walls Destroyed . | . . . . Machines Disabled . | . . . . Actions | -11 -10 -9 -9 --------- Run | Yrd Mat Mat Min Total 1135 | 64 123 806 142 Wait 38 | . . 38 . Move 968 | 47 115 683 123 Hop . | . . . . Pick Up 43 | 11 4 28 . Fast Attach 1 | 1 . . . Attach 26 | 5 . 15 6 Detach . | . . . . Swap 7 | . 2 5 . Drop 13 | . 2 11 . Fire 38 | . . 26 12 Melee . | . . . . Ram 1 | . . . 1 Kick . | . . . . Crush . | . . . . Escape Stasis . | . . . . Rewire . | . . . . Trap . | . . . . Miscellaneous . | . . . . Route ------- -11/Scrapyard -10/Materials -9/Materials -9/Mines History --------- Turn | Location | Event 11 | -11/Scrapyard | Discovered new exit (range 16) 55 | -11/Scrapyard | Entered Materials 140 | -10/Materials | Discovered new exit (range 3) 156 | -10/Materials | Entered another Materials area 156 | -9/Materials | Evolved 2 slots: Propulsion x1, Utility x1 309 | -9/Materials | Build established: Mutant 498 | -9/Materials | Crushed by falling debris 537 | -9/Materials | Lost 5 parts (2p1n2u) 647 | -9/Materials | Lost 3 parts (1p1u1w) 871 | -9/Materials | Discovered new exit (range 13) 926 | -9/Materials | Entered Mines 963 | -9/Mines | Assembled infested the area 967 | -9/Mines | Learned 2 Materials zone layouts 968 | -9/Mines | Assisted by a Guerilla fighting off Assembled 1025 | -9/Mines | Core integrity fell below 50% 1033 | -9/Mines | Met a Derelict bent on vengeance 1035 | -9/Mines | Crushed by falling debris 1069 | -9/Mines | Lost 6 parts (1p3n2u) 1071 | -9/Mines | Destroyed 14 combat bots 1082 | -9/Mines | Core integrity fell below 20% 1093 | -9/Mines | Destroyed by D-53 Grenadier with Mini Grenade Launcher Last Messages --------------- S-10 Pest destroyed. The unstable cave ceiling collapses. System corrupted: Matter fused (-9). The unstable cave ceiling collapses. as-42641 destroyed. The unstable cave ceiling collapses. U-05 Engineer builds a Wall. The unstable cave ceiling collapses. R-06 Scavenger destroyed. Hvy. Particle Gun destroyed. Hvy. Armor Plating destroyed. The unstable cave ceiling collapses. Com. Wheel destroyed. Mni. Grenade Launcher destroyed. The unstable cave ceiling collapses. Ion Engine destroyed. Com. Wheel destroyed. The unstable cave ceiling collapses. System corrupted: Matter fused (-6). [Achievement: Back For More] Map ----- +----------------------------------------------------+ | ???????????????# #???????????????????????????????? | | ??????????###### #???????????????????????????????? | | ??????????# #???????????????????????????????? | | ??????????# ######???????????????????????????????? | | ??????????# #????????????????????????????????????? | | ???????#??# #????????####????????????????????????? | | ?????### ?# ##?????### # ##??????????????????????? | | ???### # #??#### ##????????????????????? | | ?### # ## # #????????????????????? | | ?# # # ###??????????????????? | | # % ##?????????????????? | | ## #?????????????????? | | # # # # # #?? # #?????????????????? | | ?????# ##?# #???# ##????????????????? | | ?????##### #???# #????# d! # #????????????????? | | ?????????# #??? #???## #????????????????? | | ?????????# #??? ???# d ##???????????????? | | ?????????# ??? ???# ######??????????? | | ?????????###??? ???# #??????????? | | ??????????????? ???## #??????????? | | ??????????????? ????# ##### #??????????? | | ??????????????? ????## #?????#??????????? | | ??????????????? ?????# ##????????????????? | | ??????????????? ?????# ##?????????????????? | | ??????????????? ????## ###??????????????????? | | ??????????????? ????# @ #???????????????????? | | ??????????????????????# #???????????????????? | | ??????????????????????# #???????????????????? | | ????????????????????? ##???????????????????? | | ???????????????????? ##????????????????????? | | ??????????????????? ########?????????????????????? | | ?????????????????? ??????????????????????????????? | | ????????????????? ???????????????????????????????? | | ??????????????? ????????????????????????????????? | | ?????????????? ?????????????????????????????????? | | ?????????????? ??????????????????????????????????? | | ?????????????????????????????????????????????????? | | ?????????????????????????????????????????????????? | | ?????????????????????????????????????????????????? | | ?????????????????????????????????????????????????? | | ?????????????????????????????????????????????????? | | ?????????????????????????????????????????????????? | | ?????????????????????????????????????????????????? | | ?????????????????????????????????????????????????? | | | | | | | | | | | | | +----------------------------------------------------+ Best States ------------- Heat Dissipation 42 Energy Generation 14 Energy Capacity 265 Matter Stores 300 Matter Capacity 300 Sight Range 16 Terrain Scan Density 10 ECM Strength 1 Armor Coverage 600 Propulsion Shielding 33 Evasion (%) 44 Item Schematics ----------------- Hcp. Storage Unit | -9/Materials | Scanalyzed Robot Schematics ------------------ None Fabricated ------------ Nothing Repaired ---------- Nothing Alien Tech Used ----------------- None Achievements -------------- Back For More Challenges ------------ None Game ------ Seed AssaultTrackerMicrothruster Manual? 0 Play Time 00:27:27 Cumulative 59.0 hours Start 2025.06.19 @ 13:09:10 End 2025.06.23 @ 21:19:57 Sessions 3 Manual Loads 0 Difficulty Rogue Special Mode None Game No. 52 Rogue 52 Adventurer 0 Explorer 0 Win Type - Total 0 Types 0/0/0/0/0/0/0/0/0/0 Lore% 13 Gallery% 18 Achievement% 19 Wizard Run 0 Options --------- Layout 1 ASCII 0 Keyboard 0 Movement Numpad Keybinds 0 Fullscreen 1 Font 24/Smallcaps Map View 50x35 Zoom Use 0% Tactical HUD 0 Map Filters NONE Filters NONE Steam 1 RUN: eca5099a-ba0e-487b-a442-09721f25ad89